fUSD/lending_fUSD_20250225
["ID","MTS","AMOUNT","RATE_DAILY","PERIOD"]
[354440975,1740498634482,-151.0,0.0003489,30]
[354440977,1740498634492,-151.0,0.0003489,30]
[354440979,1740498634501,-151.0,0.0003489,30]
[354440980,1740498634511,-161.18732624,0.0003489,30]
[354440982,1740498634520,-300.0,0.00034899,10]
[354440983,1740498634530,-151.0,0.000349,7]
[354440984,1740498634540,-10885.27371722,0.000349,2]
[354440985,1740498634554,-24651.1570008,0.000349,2]
[354440986,1740498634568,-775.13734053,0.000349,2]
[354440987,1740498634579,-2246.1,0.000349,2]
[354440988,1740498634601,-518.94,0.000349,2]
[354440989,1740498634616,-8732.55880505,0.000349,2]
[354440993,1740498637748,-345.43860879,0.000349,2]
[354440995,1740498637884,-877.52,0.000349,2]
[354440996,1740498637896,-16808.38994911,0.000349,2]
[354440997,1740498637908,-601.675,0.000349,2]
[354440998,1740498637997,-459.81486913,0.000349,2]
[354440999,1740498638008,-69635.98851512,0.000349,2]
[354441000,1740498638020,-684.21984057,0.000349,2]
[354441017,1740498640094,-268827.26340754,0.000349,2]
[354441018,1740498640234,-543.49605304,0.000349,2]
[354441019,1740498640246,-67459.11496346,0.000349,2]
[354441020,1740498640256,-151.616755,0.000349,7]
[354441021,1740498640265,-151.0,0.000349,7]
[354441022,1740498640275,-151.0,0.000349,7]
[354441023,1740498640285,-151.0,0.000349,7]
[354441024,1740498640295,-151.0,0.000349,7]
[354441025,1740498640304,-151.0,0.000349,7]
[354441026,1740498640317,-151.0,0.000349,7]
[354441027,1740498640327,-151.0,0.000349,7]
[354441028,1740498640337,-151.0,0.000349,7]
[354441029,1740498640346,-251.331954,0.000349,7]
[354441030,1740498640356,-151.0,0.000349,7]
[354441031,1740498640367,-151.0,0.000349,7]
[354441032,1740498640376,-151.0,0.000349,7]
[354441033,1740498640386,-151.159582,0.000349,7]
[354441034,1740498640396,-151.0,0.000349,7]
[354441035,1740498640406,-151.0,0.000349,7]
[354441036,1740498640415,-151.0,0.000349,7]
[354441037,1740498640425,-303.269027,0.000349,7]
[354441038,1740498640434,-303.269027,0.000349,7]
[354441039,1740498640443,-151.0,0.000349,7]
[354441040,1740498640453,-186.769486,0.000349,7]
[354441041,1740498640462,-186.769486,0.000349,7]
[354441042,1740498640472,-151.0,0.000349,7]
[354441043,1740498640481,-274.191876,0.000349,7]
[354441044,1740498640491,-151.0,0.000349,7]
[354441045,1740498640501,-156.69968,0.000349,7]
[354441046,1740498640511,-156.69968,0.000349,7]
[354441047,1740498640521,-151.0,0.000349,7]
[354441048,1740498640530,-151.0,0.000349,7]
[354441049,1740498640540,-151.0,0.000349,7]
[354441050,1740498640549,-162.095462,0.000349,7]
[354441051,1740498640559,-162.095462,0.000349,7]
[354441052,1740498640571,-2600.0,0.000349,12]
[354441053,1740498640581,-326.697139,0.000349,7]
[354441055,1740498640591,-326.697139,0.000349,7]
[354441057,1740498640600,-225.027886,0.000349,7]
[354441059,1740498640610,-225.027886,0.000349,7]
[354441061,1740498640620,-151.0,0.000349,7]
[354441063,1740498640630,-322.793032,0.000349,7]
[354441065,1740498640639,-322.793032,0.000349,7]
[354441067,1740498640650,-151.0,0.000349,7]
[354441069,1740498640659,-151.0,0.000349,7]
[354441071,1740498640669,-151.096298,0.000349,7]
[354441073,1740498640678,-522.16336968,0.000349,8]
[354441075,1740498640688,-151.0,0.000349,7]
[354441077,1740498640698,-8593.45275988,0.00034916,2]
[354441079,1740498640707,-246.97076196,0.00034916,2]
[354441081,1740498640730,-1958.04399352,0.00034916,2]
[354441083,1740498640739,-290.4620578,0.00034916,2]
[354441085,1740498640749,-300.0,0.00034932,10]
[354441087,1740498640759,-1818.75589299,0.00034933,2]
[354441089,1740498640771,-1046.352,0.00034933,2]
[354441091,1740498640783,-292.47518075,0.00034933,2]
[354441093,1740498640796,-4905.07279653,0.00034933,2]
[354441095,1740498640806,-150.76,0.00034977,2]
[354441097,1740498640818,-300.0,0.00034986,10]
[354441099,1740498640827,-4460.0,0.00034986,2]
[354441101,1740498640837,-11992.66720347,0.00034987,30]
[354441104,1740498640851,-2260.55122871,0.00034987,30]
[354441106,1740498640864,-351.0791658,0.00034987,30]
[354441108,1740498640876,-1309.7483068,0.00034987,30]
[354441305,1740498642952,-151.0,0.000349,7]
[354441308,1740498642963,-4167.21389999,0.00034987,30]
[354441354,1740498643240,-20281.04885151,0.00034987,30]
[354441356,1740498643251,-40998.58132369,0.00034987,30]
[354441358,1740498643261,-150.76,0.0003499,2]
[354441360,1740498643270,-198.16709924,0.0003499,2]
[354441362,1740498643280,-151.0,0.0003499,7]
[354441364,1740498643290,-151.0,0.0003499,7]
[354441366,1740498643299,-150.76,0.0003499,2]
[354441368,1740498643308,-150.76,0.0003499,2]
[354441370,1740498643320,-150.76,0.0003499,2]
[354441372,1740498643329,-150.76,0.0003499,2]
[354441374,1740498643338,-150.76,0.0003499,2]
[354441376,1740498643347,-150.76,0.0003499,2]
[354441378,1740498643365,-150.76,0.0003499,2]
[354441381,1740498643376,-150.76,0.0003499,2]
[354441383,1740498643386,-150.76,0.0003499,2]
[354441384,1740498643395,-198.16709924,0.0003499,2]
[354441386,1740498643404,-31.41047784,0.0003499,2]
[354441387,1740498643422,-119.34952216,0.0003499,2]
[354441388,1740498643431,-150.76,0.0003499,2]
[354441389,1740498643441,-7.22054259,0.0003499,2]
[354441390,1740498643452,-143.53945741,0.0003499,2]
[354441391,1740498643462,-465.00387659,0.00034992,2]
[354441392,1740498643640,-583.72911711,0.00034992,2]
[354441393,1740498643651,-2231.9539728,0.00034992,2]
[354441394,1740498643661,-667.1613224,0.00034992,2]
[354441395,1740498643672,-318.15278769,0.00034992,2]
[354441418,1740498646119,-300.0,0.000346,12]
[354441419,1740498646132,-291.88859591,0.00034992,2]
[354441420,1740498646142,-906.4675067,0.00034992,2]
[354441421,1740498646152,-303.25873878,0.00034999,10]
[354441422,1740498646163,-47.79391341,0.00035,26]
[354441423,1740498646266,-1023.46001328,0.00035,26]
[354441424,1740498646278,-805.99404703,0.00035,26]
[354441425,1740498646289,-202648.49534786,0.00035,26]
[354441426,1740498646305,-13835.97632003,0.00035,26]
[354441685,1740498702083,4939.667378,0.0002,120]
[354441686,1740498726334,151.0,0.00023,30]
[354441687,1740498734211,1000.0,0.0002,120]
[354441688,1740498758129,3017.33024,0.00023,31]
[354441690,1740498909964,196.21,0.00013699,2]
[354442373,1740499025840,249.0,0.00023,30]
[354442407,1740499613263,-150.0,0.00025657,120]
[354442408,1740499613293,-299.99,0.000329,30]
[354442409,1740499613329,-616.45,0.00032917,120]
[354442410,1740499613360,-1932.753,0.00033536,36]
[354442411,1740499613389,-165.611,0.00033536,36]
[354442412,1740499613423,-2000.0,0.00033638,120]
[354442413,1740499613452,-601.13,0.00034,120]
[354442414,1740499613482,-12499.99,0.00034,120]
[354442415,1740499613510,-12499.99,0.00034,120]
[354442416,1740499613539,-3229.11,0.00034,120]
[354442417,1740499613566,-358.21,0.00034,120]
[354442418,1740499613598,-14999.99,0.000345,120]
[354442419,1740499613626,-1350.37,0.000345,120]
[354442420,1740499613654,-7214.69,0.000345,120]
[354442421,1740499613683,-885.48,0.000345,120]
[354442422,1740499613714,-736.9654706,0.00034774,30]
[354442423,1740499613745,-2588.32733505,0.00034802,30]
[354442424,1740499613775,-2588.32733505,0.00034803,30]
[354442425,1740499613808,-736.9654706,0.00034803,30]
[354442426,1740499613846,-66070.60082933,0.00034811,30]
[354442427,1740499613876,-66070.60082933,0.00034839,30]
[354442428,1740499613903,-2588.32733505,0.00034844,30]
[354442429,1740499613932,-736.9654706,0.00034865,30]
[354442430,1740499613960,-2588.32733505,0.00034866,30]
[354442431,1740499613989,-66070.60082933,0.00034877,30]
[354442432,1740499614019,-66070.60082933,0.00034915,30]
[354442433,1740499614049,-200.0,0.00034918,30]
[354442434,1740499614082,-736.9654706,0.00034948,30]
[354442435,1740499614162,-999.0,0.00034999,120]
[354442436,1740499614238,-238.34395383,0.00035,71]
[354442437,1740499614321,-1611179.77788775,0.00035,30]
[354442438,1740499614409,-446.445,0.00035,120]
[354442439,1740499614493,-50549.0946185,0.00035,30]
[354442440,1740499619543,-949450.9053815,0.00035,30]
[354442441,1740499619637,-30489.05120686,0.00035,30]
[354442442,1740499619741,-1000000.0,0.000355,120]
[354442443,1740499619842,-896.16789556,0.000359,120]
[354442444,1740499619937,-19163.87551608,0.0003598,30]
[354442445,1740499622988,-108696.51200665,0.0003598,30]
[354442446,1740499623025,-5100.0,0.0003599,33]
[354442447,1740499623063,-1886203.48799335,0.00036,35]
[354442448,1740499629395,-2125.4747,0.00034806,30]
[354442449,1740499629443,-2125.4747,0.00034966,30]
[354442450,1740499629484,-2125.4747,0.00034981,30]
[354442451,1740499629526,-2125.4747,0.00034994,30]
[354442452,1740499629766,-113796.51200665,0.00036,35]
[354442453,1740499629807,-1000000.0,0.00036,35]
[354442454,1740499629853,-150.0,0.00036487,30]
[354442455,1740499629892,-150.0,0.00036487,30]
[354442456,1740499629931,-150.0,0.00036487,30]
[354442457,1740499629970,-150.0,0.00036487,30]
[354442458,1740499630009,-667.56276471,0.00036487,30]
[354442459,1740499630047,-341.57864934,0.00036487,30]
[354442460,1740499630085,-4816.17742016,0.00036487,30]
[354442461,1740499630125,-2021.03839483,0.00036487,30]
[354442462,1740499630174,-869255.23196431,0.000365,120]
[354442463,1740499639297,-12499.99,0.00034,120]
[354442464,1740499639374,-130744.76803569,0.000365,120]
[354442465,1740499639420,-2000000.0,0.00037,40]
[354442466,1740499639462,-1000000.0,0.00037,40]
[354442467,1740499639505,-2209.0,0.00037,117]
[354442468,1740499639548,-616.45,0.00037031,120]
[354442469,1740499639591,-5000.0,0.000375,60]
[354442470,1740499639636,-30000.0,0.00037695,30]
[354442471,1740499639673,-1346.39,0.00037767,30]
[354442472,1740499639712,-1346.39,0.00037767,30]
[354442473,1740499639749,-1346.39,0.00037767,30]
[354442474,1740499639787,-1346.39,0.00037767,30]
[354442475,1740499639824,-32907.9,0.0003798,60]
[354442476,1740499639862,-2000000.0,0.00038,45]
[354442477,1740499639901,-780636.33196431,0.00038,45]
[354442478,1740499653750,-12500.0,0.00034,120]
[354442479,1740499653827,-24066.41625339,0.00037695,30]
[354442480,1740499653868,-219363.66803569,0.00038,45]
[354442481,1740499653904,-595.84899043,0.00038,120]
[354442482,1740499653944,-1346.39,0.00038041,30]
[354442483,1740499653986,-1346.39,0.00038041,30]
[354442484,1740499654026,-999.0,0.00038287,120]
[354442485,1740499654067,-1346.39,0.00038315,30]
[354442486,1740499654105,-1346.39,0.00038315,30]
[354442487,1740499654144,-1000.0,0.0003853,120]
[354442488,1740499654181,-1346.39,0.00038589,30]
[354442489,1740499654217,-1346.39,0.00038589,30]
[354442490,1740499654253,-144462.3927848,0.000387,60]
[354442491,1740499654291,-1346.39,0.00038863,30]
[354442492,1740499654327,-1346.39,0.00038863,30]
[354442493,1740499654366,-8790.65,0.000389,30]
[354442494,1740499654408,-5577450.90393569,0.00039,60]
[354442495,1740499658018,-922888.50606431,0.00039,60]
[354442496,1740499658055,-2000000.0,0.00039,50]
[354442497,1740499658091,-1000000.0,0.00039,50]
[354442498,1740499658130,-442310.65,0.00039,30]
[354442499,1740499658168,-126884.43428565,0.00039,30]
[354442500,1740499658207,-1346.39,0.00039137,30]
[354442501,1740499658245,-1346.39,0.00039137,30]
[354442502,1740499658284,-1346.39,0.00039411,30]
[354442503,1740499658321,-1346.39,0.00039411,30]
[354442504,1740499658357,-31625.55047461,0.000395,120]
[354442505,1740499658392,-259.43802,0.0003964,35]
[354442506,1740499658428,-1346.39,0.00039685,30]
[354442507,1740499658468,-1346.39,0.00039685,30]
[354442508,1740499658507,-47200.0,0.00039817,120]
[354442509,1740499658548,-364.411,0.00039849,120]
[354442510,1740499658583,-2000.0,0.000399,120]
[354442511,1740499658618,-1346.39,0.00039959,30]
[354442512,1740499658655,-1346.39,0.00039959,30]
[354442513,1740499658689,-349.24422226,0.00039999,31]
[354442514,1740499658727,-500.0,0.00039999,31]
[354442515,1740499658765,-500.0,0.00039999,31]
[354442516,1740499658803,-500.0,0.00039999,31]
[354442517,1740499658841,-500.0,0.00039999,31]
[354442518,1740499658879,-500.0,0.00039999,31]
[354442519,1740499658918,-500.0,0.00039999,31]
[354442520,1740499658962,-500.0,0.00039999,31]
[354442521,1740499659006,-500.0,0.00039999,31]
[354442522,1740499659049,-500.0,0.00039999,31]
[354442523,1740499659092,-500.0,0.00039999,31]
[354442524,1740499659129,-405.06735154,0.00039999,31]
[354442525,1740499659166,-500.0,0.00039999,31]
[354442526,1740499659203,-500.0,0.00039999,31]
[354442527,1740499659250,-500.0,0.00039999,31]
[354442528,1740499659295,-500.0,0.00039999,31]
[354442529,1740499659336,-500.0,0.00039999,31]
[354442530,1740499659378,-500.0,0.00039999,31]
[354442531,1740499659422,-500.0,0.00039999,31]
[354442532,1740499659468,-500.0,0.00039999,31]
[354442533,1740499659508,-500.0,0.00039999,31]
[354442534,1740499659549,-100000.0,0.0004,38]
[354442535,1740499659584,-1887.13381063,0.0004,120]
[354442536,1740499659623,-2000.0,0.0004,120]
[354442537,1740499659661,-1301554.444771,0.0004,60]
[354442538,1740499670029,-698445.555229,0.0004,60]
[354442539,1740499670067,-2000000.0,0.0004,60]
[354442540,1740499670107,-595.84899043,0.0004,120]
[354442541,1740499670149,-307.3281089,0.0004,30]
[354442542,1740499670191,-150.0,0.0004,120]
[354442543,1740499670238,-500.0,0.00040193,120]
[354442544,1740499670277,-500.0,0.00040208,120]
[354442545,1740499670316,-2000.0,0.00040208,120]
[354442546,1740499670356,-500.0,0.00040208,120]
[354442547,1740499670397,-1346.39,0.00040233,30]
[354442548,1740499670455,-1346.39,0.00040233,30]
[354442549,1740499670498,-200.0,0.00040408,120]
[354442550,1740499670541,-1346.39,0.00040507,30]
[354442551,1740499670581,-1346.39,0.00040507,30]
[354442552,1740499670624,-100000.0,0.00041,41]
[354442553,1740499670663,-1000000.0,0.00041,60]
[354442554,1740499670702,-1600000.0,0.00041,90]
[354442555,1740499670741,-126884.43428565,0.00041,30]
[354442556,1740499670782,-616.45,0.00041146,120]
[354442557,1740499670821,-327.0,0.00041425,90]
[354442558,1740499670862,-463587.82338602,0.000415,60]
[354442559,1740499676989,-2000.0,0.00032921,120]
[354442560,1740499677028,-12499.99,0.00034,120]
[354442561,1740499677119,-536412.17661398,0.000415,60]
[354442562,1740499677154,-150.0,0.000415,60]
[354442563,1740499677192,-999.0,0.00041575,120]
[354442564,1740499677231,-100000.0,0.00042,42]
[354442565,1740499677268,-293.0,0.00042,90]
[354442566,1740499677307,-1000000.0,0.00042,120]
[354442567,1740499677342,-1000000.0,0.00042,90]
[354442568,1740499677377,-1630.47901605,0.00042,120]
[354442569,1740499677418,-259.43802,0.0004214,43]
[354442570,1740499677457,-500.0,0.00042235,120]
[354442571,1740499677495,-2000.0,0.00042235,120]
[354442572,1740499677532,-500.0,0.00042235,120]
[354442573,1740499677568,-500.0,0.00042235,120]
[354442574,1740499677604,-200.0,0.00042235,120]
[354442575,1740499677638,-162.237082,0.0004224,120]
[354442576,1740499677672,-1250000.0,0.000425,90]
[354442577,1740499677712,-385.40570462,0.000429,30]
[354442578,1740499677749,-13084.8835811,0.00042999,30]
[354442579,1740499677788,-100000.0,0.00043,47]
[354442580,1740499677825,-1000000.0,0.00043,120]
[354442581,1740499677865,-978423.38998225,0.00043,120]
[354442582,1740499680714,-12500.0,0.00034,120]
[354442583,1740499680807,-150.0,0.000425,90]
[354442584,1740499680849,-21576.61001775,0.00043,120]
[354442585,1740499680891,-1191.69798086,0.00043,120]
[354442586,1740499680935,-500.0,0.0004312,30]
[354442587,1740499680980,-500.0,0.0004312,30]
[354442588,1740499681022,-500.0,0.0004312,30]
[354442589,1740499681065,-500.0,0.0004312,30]
[354442590,1740499681107,-500.0,0.0004312,30]
[354442591,1740499681150,-618.45613313,0.0004312,30]
[354442592,1740499681199,-327.0,0.00043496,90]
[354442593,1740499681239,-1000000.0,0.000435,120]
[354442594,1740499681278,-174.02240052,0.000435,30]
[354442595,1740499681314,-200.0,0.00043677,120]
[354442596,1740499681352,-1000000.0,0.0004375,120]
[354442597,1740499681387,-500.0,0.00043835,120]
[354442598,1740499681428,-983.116871,0.00043835,120]
[354442599,1740499681467,-500.0,0.00043835,120]
[354442600,1740499681503,-1551.95,0.00043836,30]
[354442601,1740499681539,-500.0,0.00043847,120]
[354442602,1740499681576,-100000.0,0.00044,49]
[354442603,1740499681614,-2000000.0,0.00044,120]
[354442604,1740499681655,-1000000.0,0.00044,120]
[354442605,1740499681696,-856727.14659674,0.00044,120]
[354442606,1740499688228,-12500.0,0.00034141,120]
[354442607,1740499688311,-143272.85340326,0.00044,120]
[354442608,1740499688345,-1000000.0,0.00044,120]
[354442609,1740499688380,-150.0,0.00044,49]
[354442610,1740499688414,-175.55036567,0.00044329,30]
[354442611,1740499688452,-2000000.0,0.000445,120]
[354442612,1740499688487,-1000000.0,0.000445,120]
[354442613,1740499688522,-126884.43428565,0.000445,30]
[354442614,1740499688558,-259.43802,0.0004464,51]
[354442615,1740499688591,-999.0,0.00044862,120]
[354442616,1740499688629,-4859.8,0.00044875,117]
[354442617,1740499688664,-175.55036567,0.00044904,30]
[354442618,1740499688700,-439.49,0.00044932,30]
[354442619,1740499688734,-300.0,0.00044932,30]
[354442620,1740499688769,-301.28,0.00044932,30]
[354442621,1740499688803,-150.0,0.00044932,30]
[354442622,1740499688841,-300.34,0.00044932,30]
[354442623,1740499688877,-300.23,0.00044932,30]
[354442624,1740499688914,-439.49,0.00044932,30]
[354442625,1740499688951,-150.0,0.00044932,30]
[354442626,1740499688989,-878.87,0.00044932,30]
[354442627,1740499689025,-150.0,0.00044932,30]
[354442628,1740499689060,-100000.0,0.00045,50]
[354442629,1740499689097,-1607313.67355975,0.00045,120]
[354442630,1740499707552,-225921.70391943,0.000448,30]
[354442631,1740499707578,-438.49,0.00044932,30]
[354442632,1740499707604,-392686.32644025,0.00045,120]
[354442633,1740499707637,-2000000.0,0.00045,120]
[354442634,1740499707663,-307.3281089,0.00045,30]
[354442635,1740499707689,-500.0,0.00045,120]
[354442636,1740499707718,-150.0,0.00045,50]
[354442637,1740499707748,-616.45,0.00045261,120]
[354442638,1740499707777,-200.0,0.00045341,120]
[354442639,1740499707805,-500.0,0.00045499,120]
[354442640,1740499707831,-2000000.0,0.000455,120]
[354442641,1740499707859,-1000000.0,0.000455,120]
[354442642,1740499707887,-175.55036567,0.00045507,120]
[354442643,1740499707913,-500.0,0.00045511,120]
[354442644,1740499707942,-150.0,0.00045753,30]
[354442645,1740499707970,-154.8,0.00045753,30]
[354442646,1740499707997,-150.0,0.00045753,30]
[354442647,1740499708024,-439.49,0.00045753,30]
[354442648,1740499708052,-377109.86116575,0.00046,120]
[354442649,1740499711126,-1044.20057842,0.00046,120]
[354442650,1740499711153,-1622890.13883425,0.00046,120]
[354442651,1740499711179,-1000000.0,0.00046,120]
[354442652,1740499711208,-1489.62247608,0.00046,120]
[354442653,1740499711238,-175.55036567,0.00046082,120]
[354442654,1740499711266,-1000000.0,0.000465,120]
[354442655,1740499711295,-1000000.0,0.000465,120]
[354442656,1740499711321,-1374400.48774558,0.000465,120]
[354442657,1740499721752,-500.0,0.00039999,31]
[354442658,1740499721781,-273.50865948,0.00039999,31]
[354442659,1740499721808,-500.0,0.00039999,31]
[354442660,1740499721845,-625599.51225442,0.000465,120]
[354442661,1740499721871,-150.0,0.000465,120]
[354442662,1740499721896,-200.0,0.00046682,120]
[354442663,1740499721922,-175.55036567,0.00046685,120]
[354442664,1740499721950,-100000.0,0.00047,49]
[354442665,1740499721978,-2000000.0,0.00047,120]
[354442666,1740499722003,-1000000.0,0.00047,120]
[354442667,1740499722029,-1000.0,0.00047,90]
[354442668,1740499722055,-126884.43428565,0.00047,30]
[354442669,1740499722079,-500.0,0.00047023,120]
[354442670,1740499722104,-259.43802,0.0004714,60]
[354442671,1740499722128,-1000000.0,0.000475,120]
[354442672,1740499722154,-1000.0,0.000475,90]
[354442673,1740499722180,-1142957.55641478,0.000475,120]
[354442674,1740499725875,-857042.44358522,0.000475,120]
[354442675,1740499725902,-150.0,0.000475,120]
[354442676,1740499725933,-2000000.0,0.00048,120]
[354442677,1740499725961,-1000000.0,0.00048,120]
[354442678,1740499725993,-107700.0,0.00048,120]
[354442679,1740499726021,-1000.0,0.00048,90]
[354442680,1740499726049,-1489.62247607,0.00048,120]
[354442681,1740499726076,-162.75,0.0004815,120]
[354442682,1740499726102,-151.63209,0.00048373,30]
[354442683,1740499726128,-151.299724,0.00048373,30]
[354442684,1740499726155,-25378.70637824,0.000484,120]
[354442685,1740499726181,-2000000.0,0.000485,120]
[354442686,1740499726207,-6773.54574647,0.000485,120]
[354442687,1740499735404,-1131.93,0.00045,90]
[354442688,1740499735433,-993226.45425353,0.000485,120]
[354442689,1740499735461,-150.0,0.000485,120]
[354442690,1740499735496,-500.0,0.00048535,120]
[354442691,1740499735706,-100000.0,0.00049,49]
[354442692,1740499735735,-2000000.0,0.00049,120]
[354442693,1740499735762,-1000000.0,0.00049,120]
[354442694,1740499735795,-1904991.61574647,0.00049,120]
[354442695,1740499745274,-95008.38425353,0.00049,120]
[354442696,1740499745300,-1000.0,0.00049,90]
[354442697,1740499745326,-150.0,0.00049,49]
[354442698,1740499745351,-500.0,0.00049287,120]
[354442699,1740499745381,-500.0,0.00049287,120]
[354442700,1740499745407,-579.49831212,0.00049287,120]
[354442701,1740499745432,-157.345278,0.00049315,120]
[354442702,1740499745458,-500.0,0.00049315,120]
[354442703,1740499745487,-1500.0,0.00049315,120]
[354442704,1740499745516,-616.45,0.00049375,120]
[354442705,1740499745544,-375.0,0.000494,120]
[354442706,1740499745570,-25000.0,0.000494,120]
[354442707,1740499745599,-264.44023506,0.000494,120]
[354442708,1740499745626,-500.0,0.00049452,120]
[354442709,1740499745654,-2000000.0,0.000495,120]
[354442710,1740499745681,-1000000.0,0.000495,120]
[354442711,1740499745709,-2000000.0,0.000495,120]
[354442712,1740499745738,-500.0,0.00049589,120]
[354442713,1740499745765,-1500.0,0.0004961,120]
[354442714,1740499745793,-500.0,0.00049726,120]
[354442715,1740499745820,-500.0,0.00049863,120]
[354442716,1740499745847,-1500.0,0.00049905,120]
[354442717,1740499745878,-500.0,0.00049999,120]
[354442718,1740499745908,-500.0,0.00049999,120]
[354442719,1740499745936,-500.0,0.00049999,120]
[354442720,1740499745965,-471.52020546,0.00049999,120]
[354442721,1740499745997,-500.0,0.00049999,120]
[354442722,1740499746026,-500.0,0.00049999,120]
[354442723,1740499746053,-865877.36171583,0.0005,120]
[354442724,1740499763374,-500.0,0.0002083,2]
[354442725,1740499763403,-150.0,0.00022913,2]
[354442726,1740499763432,-250.0,0.00022913,10]
[354442727,1740499763459,-150.0,0.0002384,2]
[354442728,1740499763490,-250.0,0.0002384,10]
[354442729,1740499763686,-5066.10858834,0.0002384,2]
[354442730,1740499763735,-6366.10858834,0.0002384,2]
[354442731,1740499763777,-6366.10858834,0.0002384,2]
[354442732,1740499763818,-2070.47301914,0.0002384,2]
[354442733,1740499763853,-6366.10858834,0.0002384,2]
[354442734,1740499763887,-6366.10858834,0.0002384,2]
[354442735,1740499763924,-6366.10858834,0.0002384,2]
[354442736,1740499763959,-6366.10858834,0.0002384,2]
[354442745,1740499831960,-2584.6,0.0002384,2]
[354442746,1740499832036,-358.18,0.0002384,2]
[354442747,1740499832047,-541.05884223,0.0002384,2]
[354442748,1740499832119,-591.826501,0.0002384,2]
[354442749,1740499832131,-1112.86578105,0.0002384,2]
[354442750,1740499832143,-41859.30277417,0.0002384,2]
[354442751,1740499832180,-502.62796016,0.0002384,2]
[354442752,1740499832241,-34000.73928952,0.0002384,2]
[354442753,1740499832251,-216.55512551,0.000239,3]
[354442754,1740499832260,-216.55512551,0.00026082,4]
[354442755,1740499832270,-163.75,0.00026412,2]
[354442756,1740499832280,-192.98,0.00026849,2]
[354442757,1740499832289,-9760.36947747,0.00026849,2]
[354442758,1740499832299,-1099.66895685,0.00027612,2]
[354442759,1740499832309,-150.99,0.00028044,2]
[354442760,1740499832320,-499.99,0.00028044,2]
[354442761,1740499832330,-8957.8,0.00028044,2]
[354442762,1740499832340,-216.55512551,0.00028264,5]
[354442763,1740499832349,-150.0,0.00029994,2]
[354442764,1740499832359,-216.55512551,0.00030445,5]
[354442765,1740499832369,-417.61,0.00031084,2]
[354442766,1740499832379,-446.89825629,0.00031619,2]
[354442767,1740499832388,-216.55512551,0.00032627,6]
[354442768,1740499832398,-500.0,0.00032759,2]
[354442769,1740499832408,-405.24,0.00032759,2]
[354442770,1740499832417,-4302.04,0.00032759,2]
[354442771,1740499832427,-1852.42,0.00032778,2]
[354442772,1740499832437,-974.77,0.00032787,2]
[354442773,1740499832446,-2599.83083084,0.00032789,2]
[354442774,1740499832458,-3417.71609367,0.00032789,2]
[354442775,1740499832473,-2659.93197334,0.00032789,2]
[354442777,1740499832505,-15222.52110215,0.00032789,2]
[354442779,1740499832515,-1464.44,0.00032842,2]
[354442781,1740499832524,-254.13,0.00032853,2]
[354442783,1740499832534,-250.0,0.00032889,2]
[354442785,1740499832544,-1417.0,0.00032899,2]
[354442787,1740499832553,-150.0,0.00032913,2]
[354442789,1740499832565,-327.0,0.00033,2]
[354442791,1740499832575,-173.15,0.00033076,2]
[354442793,1740499832588,-2000.0,0.00033077,120]
[354442794,1740499832598,-254.13,0.00033112,2]
[354442795,1740499832607,-327.0,0.00033151,2]
[354442796,1740499832616,-155.16,0.00033168,2]
[354442797,1740499832625,-1444.6,0.00033213,2]